bitfinex/quotes_SOLUSD_20240628
["timestamp","ask_amount","ask_price","bid_price","bid_amount"]
[1719540378690,20.0,148.42,148.36,0.8536732]
[1719540379400,6.7359,148.46,148.36,0.8536732]
[1719540379586,20.0,148.45,148.36,0.8536732]
[1719540380503,20.0,148.46,148.36,0.8536732]
[1719540380680,6.735,148.48,148.38,16.0567]
[1719540380876,23.0039,148.54,148.38,16.0567]
[1719540380877,26.04,148.53,148.38,16.0567]
[1719540381078,6.7341,148.5,148.38,16.0567]
[1719540381289,31.42401252,148.53,148.38,16.0567]
[1719540381491,6.7353,148.47,148.38,16.0567]
[1719540381886,6.95358875,148.52,148.38,16.0567]
[1719540382091,6.7344,148.5,148.38,16.0567]
[1719540382399,20.0,148.49,148.38,16.0567]
[1719540383080,20.0,148.52,148.38,16.0567]
[1719540383788,26.04,148.5,148.38,16.0567]
[1719540383983,20.0,148.49,148.38,16.0567]
[1719540384183,26.04,148.47,148.38,16.0567]
[1719540384395,6.7377,148.42,148.38,16.0567]
[1719540384608,20.0,148.41,148.38,16.0567]
[1719540385189,20.0,148.43,148.38,16.0567]
[1719540385798,26.04,148.52,148.38,16.0567]
[1719540386297,1.88956158,148.51,148.38,16.0567]
[1719540386599,6.7363,148.45,148.38,16.0567]
[1719540386974,1.88956158,148.51,148.38,16.0567]
[1719540387171,6.7353,148.48,148.38,16.0567]
[1719540387375,20.0,148.47,148.38,16.0567]
[1719540387800,1.88956158,148.46,148.38,16.0567]
[1719540390190,6.7368,148.44,148.38,16.0567]
[1719540390508,1.88956158,148.43,148.38,16.0567]
[1719540391226,1.88956158,148.43,148.36,0.8536732]
[1719540391390,6.7376,148.42,148.36,0.8536732]
[1719540391893,1.88612923,148.41,148.36,0.8536732]
[1719540392790,8.62432923,148.41,148.36,0.8536732]
[1719540392991,1.88612923,148.41,148.36,0.8536732]
[1719540393701,21.88612923,148.41,148.36,0.8536732]
[1719540394416,26.7385,148.4,148.36,0.8536732]
[1719540394595,1.88657808,148.39,148.36,0.8536732]
[1719540395211,21.88657808,148.39,148.36,0.8536732]
[1719540395792,1.88657808,148.39,148.36,0.8536732]
[1719540395994,20.0,148.38,148.36,0.8536732]
[1719540396210,1.88702246,148.37,148.36,0.8536732]
[1719540399721,20.0,148.42,148.36,0.8536732]
[1719540399925,6.7371,148.44,148.36,0.8536732]
[1719540399926,1.88702246,148.41,148.36,23.2083732]
[1719540401603,6.7351,148.48,148.36,23.2083732]
[1719540401816,21.88956158,148.47,148.36,23.2083732]
[1719540402020,28.62486158,148.47,148.36,23.2083732]
[1719540402221,1.88956158,148.46,148.36,23.2083732]
[1719540403306,6.7371,148.44,148.36,23.2083732]
[1719540403506,21.88956158,148.43,148.36,23.2083732]
[1719540403908,1.88956158,148.43,148.36,23.2083732]
[1719540404928,1.88956158,148.42,148.36,23.2083732]
[1719540408603,6.7381,148.41,148.36,23.2083732]
[1719540408802,21.88956158,148.4,148.36,23.2083732]
[1719540409127,1.88956158,148.39,148.36,23.2083732]
[1719540414033,1.88956158,148.39,148.36,0.8536732]
[1719540414606,8.62866158,148.39,148.36,0.8536732]
[1719540414808,20.0,148.38,148.36,0.8536732]
[1719540415209,1.88956158,148.37,148.36,0.8536732]
[1719540416330,8.62946158,148.37,148.36,0.8536732]
[1719540416715,28.62946158,148.37,148.36,0.8536732]
[1719540419135,54.84946158,148.37,148.36,0.8536732]
[1719540419515,76.57916158,148.37,148.36,0.8536732]
[1719540419709,16.8524,148.35,148.27,6.2487]
[1719540419915,46.22,148.34,148.27,6.2487]
[1719540420116,6.7425,148.32,148.27,6.2487]
[1719540420312,20.0,148.31,148.27,6.2487]
[1719540420751,20.0,148.31,148.27,12.9931]
[1719540420916,20.0,148.32,148.27,12.9931]
[1719540421114,6.743,148.3,148.24,15.7018]
[1719540421316,6.745,148.26,148.21,0.8536732]
[1719540421511,6.7442,148.28,148.21,0.8536732]
[1719540421707,20.0,148.27,148.23,6.746]
[1719540421942,20.0,148.29,148.23,6.746]
[1719540422313,20.0,148.29,148.22,6.7466]
[1719540422514,1.88612923,148.28,148.23,6.7462]
[1719540423333,1.88612923,148.28,148.21,0.8536732]
[1719540423520,1.88612923,148.28,148.22,6.7467]
[1719540423728,6.7445,148.27,148.21,0.8536732]
[1719540423945,21.88273335,148.26,148.21,0.8536732]
[1719540424123,1.88273335,148.25,148.21,0.8536732]
[1719540424643,6.7458,148.24,148.21,0.8536732]
[1719540424846,1.88273335,148.25,148.21,0.8536732]
[1719540425830,6.7462,148.24,148.21,0.8536732]
[1719540426021,16.4668,148.24,148.21,0.8536732]
[1719540426225,6.7467,148.22,148.21,0.8536732]
[1719540426749,16.4668,148.24,148.21,0.8536732]
[1719540426930,28.62567135,148.23,148.21,0.8536732]
[1719540427131,1.87985158,148.22,148.21,0.8536732]
[1719540428447,15.1592,148.33,148.21,0.8536732]
[1719540428649,6.7435,148.3,148.21,0.8536732]
[1719540428853,1.20401965,148.29,148.21,0.8536732]
[1719540429624,6.7448,148.27,148.21,0.8536732]
[1719540429828,1.20743022,148.26,148.21,0.8536732]
[1719540430028,1.20743022,148.26,148.22,6.0457]
[1719540430340,20.0,148.32,148.23,15.5795]
[1719540430535,1.20401965,148.31,148.23,15.5795]
[1719540432644,1.20401965,148.31,148.25,16.1647]
[1719540432857,20.0,148.4,148.25,16.1647]
[1719540433023,20.0,148.4,148.26,6.2364]
[1719540433521,6.7404,148.36,148.26,6.2364]
[1719540433741,8.62756101,148.35,148.26,6.2364]
[1719540433945,1.88656101,148.35,148.26,6.2364]
[1719540434147,1.88656101,148.34,148.26,6.2364]
[1719540435630,6.7418,148.33,148.26,6.2364]
[1719540435834,8.62579037,148.32,148.26,6.2364]
[1719540436066,1.88359037,148.32,148.22,6.5782]
[1719540436233,8.62334936,148.31,148.22,6.5782]
[1719540436436,1.88064936,148.3,148.22,6.5782]
[1719540436747,1.88064936,148.3,148.21,16.6903732]
[1719540436748,6.7439,148.29,148.21,16.6903732]
[1719540436935,21.8806937,148.28,148.21,16.6903732]
[1719540437129,20.0,148.28,148.21,16.6903732]
[1719540437330,1.87778181,148.27,148.21,16.6903732]
[1719540439958,6.7451,148.26,148.21,0.8536732]
[1719540440131,22.0245,148.27,148.21,0.8536732]
[1719540440331,1.87778181,148.25,148.21,0.8536732]
[1719540443039,1.87778181,148.25,148.21,16.8981732]
[1719540443240,1.87778181,148.25,148.22,6.0197]
[1719540449069,26.7416,148.34,148.22,6.0197]
[1719540449242,1.88956158,148.33,148.22,6.0197]
[1719540449973,21.88956158,148.33,148.22,6.0197]
[1719540450141,28.63156158,148.33,148.22,6.0197]
[1719540450554,21.88956158,148.33,148.22,6.0197]
[1719540450875,1.88956158,148.33,148.22,6.0197]
[1719540451092,21.88956158,148.33,148.22,6.0197]
[1719540451573,1.88956158,148.33,148.22,6.0197]
[1719540451875,1.88956158,148.33,148.23,15.9796]
[1719540454947,1.88956158,148.33,148.24,6.2159]
[1719540455262,1.88956158,148.33,148.25,16.1009]
[1719540456557,6.7375,148.43,148.28,21.5694]
[1719540456757,21.6275,148.46,148.28,21.5694]
[1719540456962,20.0,148.45,148.28,21.5694]
[1719540457182,6.7373,148.43,148.28,21.5694]
[1719540457400,15.1052,148.46,148.3,21.6739]
[1719540457596,6.7359,148.46,148.3,21.6739]
[1719540457772,23.3132,148.49,148.3,21.6739]
[1719540458099,16.8392,148.47,148.3,21.6739]
[1719540458283,6.7381,148.41,148.3,21.6739]
[1719540459088,16.8392,148.47,148.3,21.6739]
[1719540459271,116.8412,148.45,148.3,21.6739]
[1719540459481,36.2656,148.44,148.3,21.6739]
[1719540459699,6.7394,148.38,148.3,21.6739]
[1719540459994,6.7391,148.39,148.3,21.6739]
[1719540461289,6.7386,148.4,148.3,21.6739]
[1719540461608,6.7389,148.39,148.3,21.6739]
[1719540461966,16.8438,148.43,148.3,21.6739]
[1719540462300,20.0,148.42,148.3,21.6739]
[1719540462498,6.7381,148.41,148.3,21.6739]
[1719540462801,20.0,148.4,148.3,21.6739]
[1719540463266,6.7377,148.42,148.3,21.6739]
[1719540463465,384.17,148.47,148.3,21.6739]
[1719540463466,6.7366,148.45,148.3,21.6739]
[1719540463669,20.0,148.44,148.3,21.6739]
[1719540463896,6.7359,148.46,148.3,21.6739]
[1719540464196,6.7364,148.45,148.3,21.6739]
[1719540464985,6.7358,148.46,148.3,21.6739]
[1719540465494,20.0,148.45,148.3,21.6739]
[1719540465693,20.0,148.45,148.32,15.0931]
[1719540465893,15.8742,148.48,148.33,6.5928]
[1719540465894,6.735,148.48,148.33,6.5928]
[1719540466105,6.735,148.48,148.34,1.3474546]
[1719540466305,6.735,148.48,148.35,15.0931]
[1719540467091,6.7355,148.47,148.35,15.0931]
[1719540467290,20.0,148.46,148.35,15.0931]
[1719540467690,20.0,148.46,148.36,6.75622456]
[1719540467893,20.0,148.47,148.36,6.3407]
[1719540468791,20.0,148.48,148.36,6.3407]
[1719540469404,26.7349,148.48,148.36,6.3407]
[1719540469810,6.7354,148.47,148.36,6.3407]
[1719540470019,26.7359,148.46,148.36,6.3407]
[1719540470221,6.7363,148.45,148.36,6.3407]
[1719540470520,20.0,148.48,148.36,6.3407]
[1719540470816,6.7355,148.47,148.36,6.3407]
[1719540471012,20.0,148.46,148.36,6.3407]
[1719540471706,20.0,148.48,148.36,6.3407]
[1719540472930,26.7349,148.48,148.36,6.3407]
[1719540473914,20.0,148.48,148.37,15.3775]
[1719540474229,20.0,148.52,148.38,6.577]
[1719540474516,26.7334,148.52,148.39,15.3775]
[1719540475289,6.7335,148.51,148.39,15.3775]
[1719540475492,20.0,148.5,148.39,15.3775]
[1719540475697,6.7345,148.49,148.39,15.3775]
[1719540475902,20.0,148.52,148.39,15.3775]
[1719540476317,6.7343,148.5,148.39,15.3775]
[1719540476523,6.7344,148.49,148.39,15.3775]
[1719540476697,6.7339,148.51,148.39,15.3775]
[1719540476897,20.0,148.5,148.39,15.3775]
[1719540477521,20.0,148.51,148.39,15.3775]
[1719540478124,20.0,148.51,148.4,6.5489]
[1719540478625,20.0,148.52,148.4,6.5489]
[1719540479109,26.7331,148.52,148.4,6.5489]
[1719540479424,261.3309,148.57,148.43,6.6584]
[1719540479609,29.57,148.62,148.46,15.7904]
[1719540479610,20.0,148.56,148.46,15.7904]
[1719540479926,26.7304,148.58,148.46,15.7904]
[1719540480131,6.7304,148.58,148.46,15.7904]
[1719540480425,6.7309,148.57,148.46,15.7904]
[1719540480607,6.7304,148.58,148.47,6.6584]
[1719540480925,6.7295,148.6,148.47,6.6584]
[1719540481138,6.7295,148.6,148.49,6.6584]
[1719540481301,6.7289,148.62,148.49,6.6584]
[1719540481630,293.1127,148.65,148.5,15.4694]
[1719540481631,6.728,148.64,148.5,15.4694]
[1719540481925,6.7282,148.63,148.5,15.4694]
[1719540482122,20.0,148.62,148.51,6.0996]
[1719540482422,20.0,148.62,148.52,15.8685]
[1719540482623,26.7286,148.62,148.52,15.8685]
[1719540482938,100.0,148.65,148.52,15.8685]
[1719540483114,54.57,148.68,148.52,15.8685]
[1719540483115,29.57,148.68,148.52,15.8685]
[1719540483310,23.76794373,148.67,148.52,15.8685]
[1719540483624,6.7286,148.62,148.52,15.8685]
[1719540483809,6.7282,148.63,148.52,15.8685]
[1719540484214,16.816,148.67,148.52,15.8685]
[1719540484215,26.7285,148.62,148.52,15.8685]
[1719540484532,20.0,148.62,148.52,15.8685]
[1719540484700,6.2992,148.61,148.52,15.8685]
[1719540484905,6.7319,148.55,148.52,15.8685]
[1719540485531,36.8246,148.6,148.52,15.8685]
[1719540485738,6.7317,148.55,148.52,15.8685]
[1719540485912,36.8246,148.6,148.52,15.8685]
[1719540486108,6.7311,148.57,148.52,15.8685]
[1719540486418,100.0,148.52,148.34,6.2308]
[1719540486620,6.7349,148.48,148.34,6.2308]
[1719540486932,20.0,148.47,148.34,6.2308]
[1719540487133,6.7376,148.42,148.34,6.2308]
[1719540487343,20.0,148.41,148.34,6.2308]
[1719540488541,20.0,148.42,148.34,6.2308]
[1719540489521,6.7386,148.4,148.34,6.2308]
[1719540489717,20.0,148.39,148.34,6.2308]
[1719540490223,20.0,148.41,148.34,6.2308]
[1719540490645,26.7381,148.41,148.34,6.2308]
[1719540491619,6.7387,148.4,148.34,6.2308]
[1719540491811,20.0,148.39,148.34,6.2308]
[1719540494539,26.739,148.39,148.34,6.2308]
[1719540495049,20.0,148.39,148.34,6.2308]
[1719540495714,6.7368,148.44,148.34,6.2308]
[1719540495916,20.0,148.43,148.34,6.2308]
[1719540496720,20.0,148.44,148.34,6.2308]
[1719540496931,26.7367,148.44,148.34,6.2308]
[1719540497239,20.0,148.44,148.34,6.2308]
[1719540497416,20.0,148.45,148.34,6.2308]
[1719540497617,20.0,148.47,148.34,6.2308]
[1719540498324,6.7367,148.44,148.34,6.2308]
[1719540498527,20.0,148.43,148.34,6.2308]
[1719540499221,20.0,148.47,148.34,6.2308]
[1719540499723,6.7367,148.44,148.34,6.2308]
[1719540499917,20.0,148.43,148.34,6.2308]
[1719540500541,20.0,148.44,148.34,6.2308]
[1719540500750,6.7372,148.43,148.34,6.2308]
[1719540500956,26.7378,148.42,148.34,6.2308]
[1719540501323,20.0,148.42,148.34,6.2308]
[1719540501734,20.0,148.43,148.34,6.2308]
[1719540502520,26.7357,148.47,148.34,6.2308]
[1719540502716,20.0,148.47,148.34,6.2308]
[1719540503637,26.7357,148.47,148.34,6.2308]
[1719540504754,20.0,148.47,148.34,6.2308]
[1719540504937,20.0,148.48,148.35,15.5414]
[1719540506125,6.7363,148.45,148.35,15.5414]
[1719540506350,6.7355,148.47,148.35,15.5414]
[1719540506523,20.0,148.46,148.35,15.5414]
[1719540506724,26.735,148.48,148.35,15.5414]
[1719540507836,6.7363,148.45,148.35,15.5414]
[1719540508027,6.7364,148.45,148.35,15.5414]
[1719540508833,20.0,148.48,148.35,15.5414]
[1719540509034,6.7356,148.47,148.35,15.5414]
[1719540509249,20.0,148.46,148.35,15.5414]
[1719540509448,6.7349,148.48,148.35,15.5414]
[1719540509633,20.0,148.47,148.35,15.5414]
[1719540510729,26.7355,148.47,148.35,15.5414]
[1719540511559,6.7358,148.46,148.35,15.5414]
[1719540511766,20.0,148.45,148.35,15.5414]
[1719540513247,20.0,148.47,148.35,15.5414]
[1719540514346,26.7354,148.47,148.35,15.5414]
[1719540517749,20.0,148.47,148.36,6.2071]
[1719540517955,20.0,148.48,148.36,6.2071]
[1719540518342,28.88172109,148.54,148.39,15.1559]
[1719540518552,32.042,148.57,148.4,6.0065]
[1719540518845,6.7327,148.53,148.4,6.0065]
[1719540519058,20.0,148.52,148.4,6.0065]
[1719540519446,6.7331,148.52,148.4,6.0065]
[1719540519665,6.7337,148.51,148.4,6.0065]
[1719540520067,15.2146,148.57,148.4,6.0065]
[1719540520068,6.7349,148.48,148.4,6.0065]
[1719540520255,6.7341,148.5,148.4,6.0065]
[1719540521462,20.0,148.49,148.4,6.0065]
[1719540521770,6.7336,148.51,148.4,6.0065]
[1719540521943,20.0,148.5,148.4,6.0065]
[1719540523048,6.7346,148.49,148.4,6.0065]
[1719540523250,20.0,148.5,148.4,6.0065]
[1719540523466,6.7348,148.49,148.4,6.0065]
[1719540525974,6.7341,148.5,148.4,6.0065]
[1719540526178,20.0,148.49,148.4,6.0065]
[1719540526770,20.0,148.5,148.4,6.0065]
[1719540527558,26.7342,148.5,148.4,6.0065]
[1719540527765,6.7345,148.49,148.4,6.0065]
[1719540529072,26.7341,148.5,148.4,6.0065]
[1719540529569,6.7323,148.54,148.4,6.0065]
[1719540529772,20.0,148.53,148.41,15.1856]
[1719540531060,20.0,148.54,148.43,15.1856]
[1719540531260,20.0,148.55,148.44,6.4979]
[1719540531768,20.0,148.56,148.44,6.4979]
[1719540531970,6.7308,148.57,148.44,6.4979]
[1719540532155,6.7304,148.58,148.45,15.4697]
[1719540533255,20.0,148.57,148.45,15.4697]
[1719540534177,20.0,148.57,148.46,6.5493]
[1719540534382,20.0,148.57,148.46,21.7791]
[1719540534557,20.0,148.61,148.46,21.7791]
[1719540534758,6.7303,148.58,148.46,21.7791]
[1719540534957,20.0,148.57,148.46,21.7791]
[1719540535464,16.8241,148.6,148.46,21.7791]
[1719540535465,6.7322,148.54,148.46,21.7791]
[1719540535783,6.7318,148.55,148.46,21.7791]
[1719540536785,6.7311,148.57,148.46,21.7791]
[1719540536963,26.7314,148.56,148.46,21.7791]
[1719540537157,6.7316,148.56,148.46,21.7791]
[1719540537363,20.0,148.55,148.46,21.7791]
[1719540537555,6.7327,148.53,148.46,21.7791]
[1719540537964,6.7323,148.54,148.46,21.7791]
[1719540538579,6.7326,148.53,148.46,21.7791]
[1719540539080,20.0,148.55,148.46,21.7791]
[1719540539271,6.7335,148.51,148.46,21.7791]
[1719540539583,6.7331,148.52,148.46,21.7791]
[1719540539784,20.0,148.51,148.46,21.7791]
[1719540540372,20.0,148.52,148.46,21.7791]
[1719540541462,20.0,148.54,148.46,21.7791]
[1719540541656,26.7322,148.54,148.46,21.7791]
[1719540541857,20.0,148.54,148.46,21.7791]
[1719540542294,26.7323,148.54,148.46,21.7791]
[1719540543169,20.0,148.54,148.46,21.7791]
[1719540543387,20.0,148.56,148.46,21.7791]
[1719540543577,16.83,148.55,148.46,21.7791]
[1719540543782,20.0,148.54,148.46,21.7791]
[1719540543969,6.7336,148.51,148.46,21.7791]
[1719540544175,20.0,148.5,148.46,21.7791]
[1719540545596,20.0,148.51,148.46,21.7791]
[1719540547781,20.0,148.53,148.46,21.7791]
[1719540548893,6.7335,148.51,148.46,21.7791]
[1719540549063,20.0,148.5,148.46,21.7791]
[1719540550099,20.0,148.51,148.46,21.7791]
[1719540550266,20.0,148.52,148.46,21.7791]
[1719540551791,20.0,148.53,148.46,21.7791]
[1719540552295,26.7326,148.53,148.46,21.7791]
[1719540555298,20.0,148.53,148.46,21.7791]
[1719540555495,6.7313,148.56,148.46,21.7791]
[1719540555698,20.0,148.55,148.46,21.7791]
[1719540556999,6.7331,148.52,148.46,21.7791]
[1719540557196,20.0,148.57,148.46,21.7791]
[1719540557197,16.8302,148.55,148.46,21.7791]
[1719540557496,6.7337,148.51,148.46,21.7791]
[1719540559796,6.7332,148.52,148.46,21.7791]
[1719540560105,6.7337,148.51,148.46,21.7791]
[1719540561095,6.733,148.53,148.46,21.7791]
[1719540561406,20.0,148.52,148.46,21.7791]
[1719540561901,6.7327,148.53,148.46,21.7791]
[1719540562108,20.0,148.52,148.46,21.7791]
[1719540563106,26.7333,148.52,148.46,21.7791]
[1719540563802,20.0,148.52,148.42,22.2254]
[1719540564188,6.7346,148.49,148.42,22.2254]
[1719540564373,6.7354,148.47,148.42,22.2254]
[1719540564577,6.7372,148.43,148.38,21.6394]
[1719540564891,43.0289,148.47,148.38,21.6394]
[1719540565105,26.19,148.47,148.38,21.6394]
[1719540565411,6.7372,148.43,148.38,21.6394]
[1719540565707,20.0,148.42,148.38,21.6394]
[1719540566591,20.0,148.44,148.38,21.6394]
[1719540566805,100.0,148.44,148.32,6.4647]
[1719540567109,26.19,148.41,148.32,6.4647]
[1719540567270,6.7404,148.36,148.32,6.4647]
[1719540567890,6.7399,148.37,148.32,6.4647]
[1719540568204,20.0,148.36,148.28,6.3196]
[1719540568579,6.7411,148.35,148.28,6.3196]
[1719540568782,20.0,148.34,148.28,6.3196]
[1719540569378,20.0,148.37,148.28,6.3196]
[1719540569879,20.0,148.39,148.28,6.3196]
[1719540570094,6.7399,148.37,148.28,6.3196]
[1719540570412,20.0,148.36,148.28,6.3196]
[1719540570919,26.7405,148.36,148.28,6.3196]
[1719540571103,20.0,148.36,148.28,6.3196]
[1719540571509,6.7387,148.4,148.28,6.3196]
[1719540571814,6.739,148.39,148.28,6.3196]
[1719540572209,26.19,148.41,148.28,6.3196]
[1719540572389,6.7381,148.41,148.29,16.3627]
[1719540572593,6.7385,148.4,148.29,16.3627]
[1719540573095,20.0,148.39,148.29,16.3627]
[1719540576930,20.0,148.4,148.3,6.0664]
[1719540577106,26.7386,148.4,148.3,6.0664]
[1719540577299,6.7396,148.38,148.3,6.0664]
[1719540577520,20.0,148.4,148.3,6.0664]
[1719540577521,6.739,148.39,148.3,6.0664]
[1719540578030,6.74,148.37,148.3,6.0664]
[1719540578423,6.7405,148.36,148.3,6.0664]
[1719540578623,6.7408,148.35,148.3,6.0664]
[1719540579005,6.7413,148.34,148.3,6.0664]
[1719540579412,6.7409,148.35,148.3,6.0664]
[1719540580025,6.7405,148.36,148.3,6.0664]
[1719540580328,20.0,148.35,148.3,6.0664]
[1719540580906,20.0,148.37,148.3,6.0664]
[1719540581130,6.7393,148.39,148.3,6.0664]
[1719540581350,20.0,148.38,148.3,6.0664]
[1719540581935,20.0,148.39,148.3,6.0664]
[1719540582240,26.739,148.39,148.3,6.0664]
[1719540582538,20.0,148.38,148.3,6.0664]
[1719540584335,6.7401,148.37,148.3,6.0664]
[1719540584723,26.7395,148.38,148.3,6.0664]
[1719540584922,20.0,148.38,148.3,6.0664]
[1719540585144,26.19,148.41,148.3,6.0664]
[1719540585145,20.0,148.4,148.3,6.0664]
[1719540585318,6.74,148.37,148.3,6.0664]
[1719540585519,20.0,148.4,148.3,6.0664]
[1719540585842,6.7398,148.38,148.3,6.0664]
[1719540586015,20.0,148.37,148.3,6.0664]
[1719540587841,26.7399,148.37,148.3,6.0664]
[1719540589150,20.0,148.37,148.3,6.0664]
[1719540589330,20.0,148.38,148.3,6.0664]
[1719540591540,26.7394,148.38,148.3,6.0664]
[1719540592934,20.0,148.38,148.3,6.0664]
[1719540593252,16.8493,148.38,148.3,6.0664]
[1719540593451,20.0,148.37,148.3,6.0664]
[1719540593658,6.7408,148.35,148.3,6.0664]
[1719540594649,20.0,148.37,148.3,6.0664]
[1719540594828,6.742,148.33,148.3,6.0664]
[1719540595032,6.7414,148.34,148.3,6.0664]
[1719540595563,6.7409,148.35,148.3,6.0664]
[1719540596322,6.7412,148.34,148.3,6.0664]
[1719540597047,6.7409,148.35,148.3,6.0664]
[1719540597550,20.0,148.37,148.3,6.0664]
[1719540598132,26.7402,148.37,148.3,6.0664]
[1719540598836,6.7405,148.36,148.3,6.0664]
[1719540599048,20.0,148.35,148.3,6.0664]
[1719540599741,20.0,148.4,148.3,6.0664]
[1719540600144,6.7394,148.38,148.3,6.0664]
[1719540600349,6.7391,148.39,148.3,6.0664]
[1719540600550,20.0,148.38,148.3,6.0664]
[1719540600843,6.7395,148.38,148.3,6.0664]
[1719540601046,6.7408,148.35,148.3,6.0664]
[1719540601243,16.8466,148.4,148.3,6.0664]
[1719540601553,6.7402,148.37,148.3,6.0664]
[1719540601958,6.7397,148.38,148.3,6.0664]
[1719540602330,20.0,148.37,148.3,6.0664]
[1719540603341,6.7389,148.4,148.3,6.0664]
[1719540603534,20.0,148.39,148.3,6.0664]
[1719540604659,26.7386,148.4,148.3,6.0664]
[1719540606033,20.0,148.4,148.3,6.0664]
[1719540606229,20.0,148.41,148.3,6.0664]
[1719540606534,6.7391,148.39,148.3,6.0664]
[1719540606749,20.0,148.38,148.3,6.0664]
[1719540607259,26.19,148.4,148.3,6.0664]
[1719540607467,20.0,148.39,148.3,6.0664]
[1719540607669,6.7429,148.31,148.26,6.3836]
[1719540607851,6.7423,148.32,148.26,6.3836]
[1719540608060,26.7427,148.31,148.26,6.3836]
[1719540608451,20.0,148.31,148.26,6.3836]
[1719540611049,6.7413,148.34,148.26,6.3836]
[1719540611553,26.7418,148.33,148.26,6.3836]
[1719540611976,20.0,148.33,148.26,6.3836]
[1719540612158,26.7407,148.36,148.26,6.3836]
[1719540613257,6.7412,148.34,148.26,6.3836]
[1719540614564,26.7404,148.36,148.26,6.3836]
[1719540615170,20.0,148.36,148.26,6.3836]
[1719540615552,6.7413,148.34,148.26,6.3836]
[1719540615889,26.742,148.33,148.26,6.3836]
[1719540616065,6.742,148.33,148.26,6.3836]
[1719540616679,20.0,148.36,148.26,6.3836]
[1719540616857,6.7422,148.32,148.26,6.3836]
[1719540617566,6.7427,148.31,148.26,6.3836]
[1719540617778,6.7422,148.32,148.26,6.3836]
[1719540618687,6.7433,148.3,148.26,6.3836]
[1719540618858,6.7425,148.32,148.26,6.3836]
[1719540621079,6.7432,148.3,148.26,6.3836]
[1719540621390,6.7447,148.27,148.22,6.0146]
[1719540621688,6.745,148.26,148.22,6.0146]
[1719540622062,6.7445,148.27,148.22,6.0146]
[1719540622264,20.0,148.26,148.22,6.0146]
[1719540623084,20.0,148.27,148.22,6.0146]
[1719540624283,6.7443,148.28,148.22,6.0146]
[1719540624474,20.0,148.27,148.22,6.0146]
[1719540625592,15.4749,148.33,148.22,6.0146]
[1719540625784,6.743,148.31,148.22,6.0146]
[1719540625985,20.0,148.3,148.22,6.0146]
[1719540626307,6.7438,148.29,148.22,6.0146]
[1719540626666,6.7441,148.28,148.22,6.0146]
[1719540626867,20.0,148.32,148.22,6.0146]
[1719540627189,20.0,148.33,148.22,6.0146]
[1719540627393,6.7409,148.35,148.23,16.133]
[1719540627565,20.0,148.34,148.23,16.133]
[1719540628691,20.0,148.37,148.24,6.0044]
[1719540628894,6.7416,148.34,148.24,6.0044]
[1719540629195,20.0,148.33,148.24,6.0044]
[1719540630887,20.0,148.34,148.24,6.0044]
[1719540631097,6.74,148.37,148.26,6.6573]
[1719540631309,6.74,148.37,148.27,15.3357]
[1719540631465,20.0,148.36,148.27,15.3357]
[1719540632593,20.0,148.37,148.27,15.3357]
[1719540632981,20.0,148.4,148.27,15.3357]
[1719540633798,6.7396,148.38,148.27,15.3357]
[1719540633999,20.0,148.37,148.27,15.3357]
[1719540635893,26.7399,148.37,148.27,15.3357]
[1719540636804,20.0,148.37,148.27,15.3357]